Cogmind - Beta 16 @@@ ROGUE MODE // 2025.11.15 @ 08:47:40 // Winter2019/RPGLIKE Player: Jaegerpls Result: Destroyed by H-66 Slayer with Heavy Assault Rifle Performance ------------- Evolutions (4) 2000 Regions Visited (4) 800 Robots Destroyed (115) 575 Value Destroyed (3552) 3552 Prototype IDs (17) 340 Alien Tech Used (0) 0 Bonus (1066) 1066 TOTAL SCORE: 8333 Bonus ------- High Alert Combat Kills 83 Follower Combat Kills 183 Registered with UFD 300 Met Optimus in HQ 500 Cogmind --------- Core Integrity 0/650 Matter 299/300 Energy 180/180 System Corruption 0% Temperature Cool (4) Movement Flying (27) Location -6/Factory Parts ------- > --- POWER (2) -------- Meta Core > --- PROPULSION (4) --- Xenon Bombardment Thruster Improved Cesium-ion Thruster Improved Cesium-ion Thruster Improved Cesium-ion Thruster > --- UTILITY (6+1) ---- Advanced Signal Interpreter Improved Terrain Scanner Advanced Melee Analysis Suite Improved Target Analyzer (+) Improved Reaction Control System Makeshift Hacking Suite System Shield > --- WEAPON (2+1) ----- Makeshift Hammer (+) Ripper DM-GVY's Chainsaw > --- INVENTORY (2) ---- Advanced Weight Redist. System Advanced ECM Suite Peak State ------------ > --- POWER ------------ Light Ion Engine Meta Core > --- PROPULSION ------- Xenon Bombardment Thruster Improved Cesium-ion Thruster Improved Cesium-ion Thruster Improved Cesium-ion Thruster > --- UTILITY ---------- Advanced Signal Interpreter Improved Terrain Scanner Advanced Melee Analysis Suite Improved Target Analyzer Improved Reaction Control System Makeshift Hacking Suite System Shield > --- WEAPON ----------- Makeshift Hammer Ripper DM-GVY's Chainsaw > --- INVENTORY -------- Advanced Weight Redist. System Advanced ECM Suite [Rating: 80] Favorites ----------- Power Meta Core Engine Light Ion Engine Power Core Meta Core Propulsion Improved Hover Unit Treads Overtuned Medium Treads Wheel Compact Wheel Hover Unit Improved Hover Unit Flight Unit Improved Cesium-ion Thruster Utility Improved Terrain Scanner Device Improved Terrain Scanner Processor Improved Target Analyzer Hackware Hacking Suite Protection Medium Armor Plating Weapon Heavy Hammer Energy Gun Medium Laser Ballistic Gun Light Assault Rifle Ballistic Cannon Light Cannon Special Weapon Junk Cannon Impact Weapon Heavy Hammer Slashing Weapon DM-GVY's Chainsaw Build | -11 -10 -10 -9 -6 ------- Run | Yrd Mat Sub Scr Fac Slots Evolved 10 | 4 1 1 . 4 Power 1 | . . . . 1 Propulsion 3 | 1 . . . 2 Utility 5 | 2 1 1 . 1 Weapon 1 | 1 . . . . Parts Attached 52 | 6 11 6 13 16 Power 6 | 1 2 1 . 2 Engine 4 | 1 1 . . 2 Core 2 | . 1 1 . . Reactor . | . . . . . Propulsion 13 | 2 2 1 4 4 Treads 1 | . . . 1 . Leg . | . . . . . Wheel 2 | 2 . . . . Hover 6 | . 2 1 3 . Flight 4 | . . . . 4 Utility 23 | 1 4 3 5 10 Device 9 | 1 1 2 1 4 Storage . | . . . . . Processor 9 | . 2 . 2 5 Hackware 3 | . 1 . 1 1 Protection 2 | . . 1 1 . Artifact . | . . . . . Weapon 10 | 2 3 1 4 . Energy Gun 1 | 1 . . . . Energy Cannon . | . . . . . Ballistic Gun 1 | 1 . . . . Ballistic Cannon 1 | . 1 . . . Launcher . | . . . . . Special Weapon 1 | . . . 1 . Impact Weapon 4 | . 2 1 1 . Slashing Weapon 2 | . . . 2 . Piercing Weapon . | . . . . . Special Melee Weapon . | . . . . . Unidentified Prototypes 4 | . . 1 1 2 Parts Lost 2 | . . 1 . 1 Power 1 | . . . . 1 Propulsion 1 | . . 1 . . Utility . | . . . . . Weapon . | . . . . . Highest Loss Streak 1 | . . 1 . 1 To Critical Strikes 1 | . . 1 . . Average Backups 1 | . . 1 . 1 Power . | . . . . . Propulsion . | . . . . . Utility . | . . . . 1 Weapon . | . . . . . Tool/Special . | . . . . . Unused Backups 2 | . 1 1 . . Power . | . . . . . Propulsion . | . . . . . Utility 1 | . . 1 . . Weapon 1 | . 1 . . . Tool/Special . | . . . . . Average Slot Usage (%) 90 | . 93 85 86 98 Engine 1 | . 5 . . 2 Core 7 | . 6 8 7 6 Hover 15 | . 18 19 19 7 Flight 4 | . . . . 12 Device 20 | . 14 26 17 17 Processor 8 | . 6 . 4 20 Hackware 7 | . 10 8 7 7 Protection 1 | . . . 4 1 Impact Weapon 16 | . 18 20 21 6 Slashing Weapon 4 | . . . 1 13 Peak Build Rating 80 | 8 19 40 59 80 Average Rating 44 | 6 15 32 42 70 On Entrance 24 | . 8 19 37 59 Avg Prop Armor Cover (%) 12 | . . . 12 . Naked Turns . | . . . . . Heaviest Build 34 | 7 12 34 34 26 Greatest Support 34 | 32 32 32 34 33 Greatest Overweight (x) 3 | . 3 1 1 1 Average Overweight (x) . | . . . . . Largest Inventory Capacity 2 | 1 1 1 1 2 Average Capacity 1 | 1 1 1 1 1 Most Carried 2 | . 1 1 1 2 Average Carried 1 | . . . . 1 Final Capacity 2 | 1 1 1 1 2 Final Carried 2 | . 1 1 1 2 Class Distribution -------------------- 62% | Gladiator 12% | Scavenger-Gladiator 8% | Scavenger-Sprinter 5% | Hacker-Sprinter 4% | Hacker-Scout 3% | Scavenger-Scout Dominant Class ---------------- Gladiator | -10/Materials Gladiator | -10/Subcaves Gladiator | -9/Scraptown Scavenger-Gladiator | -6/Factory Resources | -11 -10 -10 -9 -6 ----------- Run | Yrd Mat Sub Scr Fac Matter Collected 868 | 212 192 70 190 204 Remotely . | . . . . . Salvage Created 4965 | 111 1084 583 219 2968 Parts 197 | 4 21 31 26 115 Haulers Intercepted 6 | . 2 . . 4 Recyclers Shooed 3 | 1 2 . . . Parts Field Recycled . | . . . . . Retrieved Matter . | . . . . . Parts Self-Destructed 8 | . . 8 . . Prevented 2 | . . 2 . . Parts Restored . | . . . . . Kills | -11 -10 -10 -9 -6 ------- Run | Yrd Mat Sub Scr Fac Combat Hostiles Destroyed 70 | . 12 20 8 30 Melee 57 | . 7 13 7 30 Cannons 1 | . 1 . . . Classes Destroyed 19 | 2 7 1 5 4 Worker 7 | . 3 . . 4 Builder 5 | . 1 . . 4 Tunneler 3 | 1 1 . . 1 Hauler 6 | . 2 . . 4 Recycler 11 | 1 5 . . 5 Operator 5 | . 3 . . 2 Watcher 8 | . 1 . . 7 Swarmer 9 | . 3 3 . 3 Grunt 27 | . 9 2 . 16 Sentry 2 | . . . . 2 Hunter 4 | . . . . 4 Programmer 4 | . . . . 4 Heavy 1 | . . . . 1 Subdweller 15 | . . 15 . . Federalist 1 | . . . 1 . Explorer 1 | . . . 1 . Guru 1 | . . . 1 . Scrapper 4 | . . . 4 . Butcher 1 | . . . 1 . Best Kill Streak 9 | 1 9 3 5 7 Combat Bots Only 5 | . 3 3 5 3 Max Kills in Single Turn 2 | 1 2 1 1 1 Gunslinging . | . . . . . Exploded . | . . . . . Melee 1 | . 1 1 1 1 Uniques/NPCs Destroyed . | . . . . . Combat | -11 -10 -10 -9 -6 -------- Run | Yrd Mat Sub Scr Fac Hostile Shots Fired 348 | . 40 92 51 165 Missed 148 | . 16 36 20 76 Hits 200 | . 24 56 31 89 Melee 2 | . . . 2 . Projectile 198 | . 24 56 29 89 Critical Strikes 11 | . 1 2 5 3 Damage Taken 3453 | . 272 1100 395 1686 Core 2792 | . 223 883 262 1424 Absorbed by Shields 148 | . . . 148 . Redirected to Core 1925 | . 151 620 214 940 Core Remaining (%) 100 | 100 . . 100 . Volleys Fired 16 | 6 10 . . . Largest 2 | 2 2 . . . Hottest 80 | 70 80 . . . Shots Fired 32 | 12 20 . . . Gun 26 | 12 14 . . . Cannon 6 | . 6 . . . Launcher . | . . . . . Special . | . . . . . Kinetic 16 | 6 10 . . . Thermal 16 | 6 10 . . . Explosive . | . . . . . Electromagnetic . | . . . . . Robot Hit Streak 5 | 5 3 . . . Robot Miss Streak 7 | 1 7 . . . Penetration Max . | . . . . . Secondary Targets . | . . . . . Shots Hit Robots 286 | 10 49 83 20 124 Core Hits 88 | 3 12 15 7 51 Critical Kills 7 | . 2 3 . 2 Critical Parts Destroyed 17 | . 6 6 1 4 Critical Strikes 56 | 1 8 11 5 31 Burn 1 | 1 . . . . Smash 26 | . 8 11 1 6 Sever 29 | . . . 4 25 Melee Attacks 450 | . 63 140 40 207 Impact 257 | . 63 140 15 39 Slashing 193 | . . . 25 168 Piercing . | . . . . . Sneak Attacks 45 | . 13 1 . 31 Combat Hostiles 10 | . . 1 . 9 Follow-up Attacks 70 | . 7 19 8 36 Damage Inflicted 14177 | 105 2397 3284 743 7648 Guns 152 | 105 47 . . . Cannons 37 | . 37 . . . Explosions . | . . . . . Melee 13988 | . 2313 3284 743 7648 Ramming . | . . . . . Kinetic 103 | 32 71 . . . Thermal 86 | 73 13 . . . Explosive . | . . . . . Electromagnetic . | . . . . . Impact 6793 | . 2313 3284 139 1057 Slashing 7195 | . . . 604 6591 Piercing . | . . . . . Highest Corruption 1 | . . . 1 . Average Corruption 1 | . . . 1 . Corruption Purged . | . . . . . Corruption Blocked . | . . . . . Overload Shots . | . . . . . Overflow Damage 3008 | . 1004 644 62 1298 Projectiles 16 | . 16 . . . Explosions . | . . . . . Melee 2992 | . 988 644 62 1298 Knockbacks 41 | . 17 20 1 3 Impact 38 | . 15 19 1 3 Kinetic . | . . . . . Secondary 3 | . 2 1 . . Self-Inflicted Damage . | . . . . . Shots . | . . . . . Rammed . | . . . . . Targets Rammed . | . . . . . Kicked . | . . . . . Crushed . | . . . . . Highest Temperature 36 | 36 18 . 7 3 Average Temperature 13 | 16 13 . 4 3 Received Heat Transfer 734 | . 69 210 179 276 Siege Activations . | . . . . . Martial Activations . | . . . . . Shielding Activations . | . . . . . Robots Disrupted . | . . . . . Combat Hostiles . | . . . . . Robots Corrupted 21 | . 12 8 1 . Combat Hostiles 13 | . 4 8 1 . Parts Fried 39 | . 22 10 2 5 Impact Corruptions 73 | . 35 25 2 11 Robots Melted . | . . . . . Combat Hostiles . | . . . . . Parts Melted 3 | . . . 3 . Heat Transferred 333 | 296 37 . . . Parts Sabotaged . | . . . . . Parts Stolen . | . . . . . Parts Stripped . | . . . . . Power Chain Reactions . | . . . . . Alert | -11 -10 -10 -9 -6 ------- Run | Yrd Mat Sub Scr Fac Maximum Alert Level 2 | . 1 . . 2 Low Security (%) 58 | 100 85 . . 48 Level 1 26 | . 14 . . 30 Level 2 15 | . . . . 20 Level 3 . | . . . . . Level 4 . | . . . . . Level 5 . | . . . . . High Security . | . . . . . Max Security . | . . . . . Peak Influence 547 | 5 230 . . 547 Initial . | . . . . . Average 175 | . 75 . . 211 Influence Increases 1792 | 10 479 156 . 1147 Destroy 0b10 Robot/C 960 | . 240 120 . 600 Destroy 0b10 Robot/NC 225 | 10 80 . . 135 Destroy Leader 258 | . 76 20 . 162 Allied During Kill 1 | . . 1 . . Successful Hack 64 | . 23 . . 41 Disable Machine 90 | . 15 . . 75 Destroy Structure 29 | . . . . 29 Partial Spotted 15 | . . . . 15 Lose Combat Pursuer 150 | . 45 15 . 90 Influence Decreases 1423 | 10 295 340 . 778 Entered New Map 89 | . . 89 . . Time Decay 984 | 10 295 251 . 428 Lost Part 10 | . . . . 10 Lost Ally 40 | . . . . 40 Purge Threat 300 | . . . . 300 Squads Dispatched 19 | . 5 . . 14 Investigation 9 | . 2 . . 7 Extermination 5 | . . . . 5 Reinforcement 5 | . 3 . . 2 Assault . | . . . . . Garrison . | . . . . . Intercept . | . . . . . Searches Triggered . | . . . . . Construction Impeded . | . . . . . Haulers Reinforced . | . . . . . Active Scanning Responses . | . . . . . Cargo Convoy Interrupts . | . . . . . Stealth | -11 -10 -10 -9 -6 --------- Run | Yrd Mat Sub Scr Fac Distress Signals 2 | . 1 . . 1 Communications Jammed . | . . . . . Distress Signals . | . . . . . Times Spotted 120 | . 27 24 28 41 Peak Tracking Total 7 | . 3 3 7 4 Tactical Retreats 11 | . 2 4 . 5 Traps | -11 -10 -10 -9 -6 ------- Run | Yrd Mat Sub Scr Fac Traps Triggered 4 | . 3 1 . . Indirectly . | . . . . . Trap Hack Attempts . | . . . . . Triggered . | . . . . . Disarmed . | . . . . . Reprogrammed . | . . . . . Reused . | . . . . . Traps Extracted . | . . . . . Installed . | . . . . . Triggered . | . . . . . Machines | -11 -10 -10 -9 -6 ---------- Run | Yrd Mat Sub Scr Fac Machines Disabled 12 | . 1 1 5 5 Max in Single Turn 1 | . 1 1 1 1 Machines Repaired . | . . . . . Machines Dismantled . | . . . . . Machines Sabotaged . | . . . . . Overloaded Fab Kills . | . . . . . Hacking | -11 -10 -10 -9 -6 --------- Run | Yrd Mat Sub Scr Fac Machines Accessed 38 | . 6 4 7 21 Terminals 14 | . 5 . . 9 Fabricators 3 | . . . . 3 Repair Stations . | . . . . . Recycling Units 6 | . 1 . . 5 Scanalyzers 1 | . . . . 1 Garrison Access 3 | . . . . 3 Total Hacks 136 | . 19 16 44 57 Successful 105 | . 9 16 44 36 Failed 30 | . 9 . . 21 Catastrophic 4 | . . . . 4 Database Lockouts 1 | . 1 . . . Manual 59 | . 17 . . 42 Terminals 47 | . 16 . . 31 Fabricators 5 | . . . . 5 Repair Stations . | . . . . . Recycling Units 15 | . 3 . . 12 Scanalyzers 2 | . . . . 2 Garrison Access 7 | . . . . 7 Terminal Hacks 69 | . 1 16 44 8 Record 55 | . . 13 41 1 Robot Analysis 7 | . 1 . 3 3 Open Door 1 | . . 1 . . Alert Level 1 | . . . . 1 Unreport Threat 2 | . . . . 2 Locate Traps 1 | . . . . 1 Proto ID Catalog 1 | . . 1 . . Release Object 1 | . . 1 . . Fabricator Hacks 4 | . . . . 4 Network Status 3 | . . . . 3 Build 1 | . . . . 1 Repair Station Hacks . | . . . . . Recycling Unit Hacks 4 | . 1 . . 3 Report Inventory 4 | . 1 . . 3 Scanalyzer 2 | . . . . 2 Retrieve Study 2 | . . . . 2 Garrison Access Hacks . | . . . . . Unauthorized Hacks 26 | . 7 . . 19 Terminals 16 | . 6 . . 10 Track 1 | . . . . 1 Botnet 3 | . 1 . . 2 Operators 2 | . . . . 2 Skim 10 | . 5 . . 5 Fabricators . | . . . . . Repair Stations . | . . . . . Recycling Units 6 | . 1 . . 5 Reject 1 | . 1 . . . Fedlink 5 | . . . . 5 Scanalyzers . | . . . . . Garrison Access 4 | . . . . 4 Broadcast 2 | . . . . 2 Reprogram 2 | . . . . 2 Data Cores Recovered 1 | . . . . 1 Used 1 | . . . . 1 Hacking Detections 21 | . 5 . . 16 Full Trace Events . | . . . . . Feedback Events . | . . . . . Feedback Blocked . | . . . . . Robot Schematics Acquired . | . . . . . Robots Built . | . . . . . Authchips . | . . . . . Time . | . . . . . Total Robot Build Rating . | . . . . . Part Schematics Acquired . | . . . . . Parts Built 2 | . . . . 2 Authchips . | . . . . . Time 39 | . . . . 39 Total Part Build Rating 14 | . . . . 14 Part Studies Acquired 2 | . . . . 2 Parts Repaired . | . . . . . Time . | . . . . . Parts Recycled . | . . . . . Recycled Matter . | . . . . . Retrieved Matter . | . . . . . Retrieved Components . | . . . . . Parts Scanalyzed . | . . . . . Part Schematics Acquired . | . . . . . Parts Damaged . | . . . . . Bothacking | -11 -10 -10 -9 -6 ------------ Run | Yrd Mat Sub Scr Fac Used RIF Installer . | . . . . . Robots Hacked . | . . . . . Non-combat . | . . . . . Combat . | . . . . . Robot Hacks Applied . | . . . . . Relay Couplers Released 1 | . . . . 1 Programmers 1 | . . . . 1 Fabnet Peak Effective % . | . . . . . Robots Rewired . | . . . . . Allies Hacked . | . . . . . Hacks Repelled . | . . . . . Allies | -11 -10 -10 -9 -6 -------- Run | Yrd Mat Sub Scr Fac Total Allies 5 | . . 3 . 2 Largest Group 3 | . . 3 3 1 Highest-Rated Group 57 | . . 57 57 37 Highest-Rated Ally 37 | . . 19 19 37 Total Orders . | . . . . . Ally Attacks 51 | . . 1 48 2 Total Damage 760 | . . 27 661 72 Kills 7 | . . 1 6 . Allies Corrupted . | . . . . . Allies Melted 7 | . . . 7 . Intel | -11 -10 -10 -9 -6 ------- Run | Yrd Mat Sub Scr Fac Active Infowar (turns) 9353 | 37 1044 3282 1780 3210 Terrain 9353 | 37 1044 3282 1780 3210 ECM 4 | . . . . 4 Robot Analysis Total 7 | . 1 . 3 3 Derelict Logs Recovered 1 | . . 1 . . Drone Launches . | . . . . . Drone Recoveries . | . . . . . Exploration | -11 -10 -10 -9 -6 ------------- Run | Yrd Mat Sub Scr Fac Turns Passed 9907 | 58 1044 3609 1986 3210 Spaces Moved 6691 | 34 818 1966 1785 2088 Core 4 | 3 1 . . . Treads . | . . . . . Legs . | . . . . . Wheels 185 | 31 154 . . . Hover 5076 | . 663 1966 1785 662 Flight 1426 | . . . . 1426 Fastest Speed 27 | 50 56 52 52 27 Average Speed 54 | 95 64 62 61 36 Slowest Speed 200 | 100 200 116 116 100 Overloaded Moves . | . . . . . Propulsion Burnouts . | . . . . . Robots Hopped 4 | . . . . 4 Potential Cave-ins 2 | . . 2 . . Cave-ins Triggered . | . . . . . Exploration Rate (%) 66 | 3 98 89 91 50 Regions Visited 4 Branch Regions 2 Pre-discovered Areas 3 | . 1 . . 2 Known Exits Taken . | . . . . . Unknown Exits Taken 4 | 1 1 1 1 . Scrap Searched 21 | . . 14 7 . Spaces Dug 37 | . . 6 2 29 Terrain Destroyed 37 | . . 6 2 29 Melee 37 | . . 6 2 29 Projectile . | . . . . . AOE . | . . . . . Terrain Rammed . | . . . . . Walls Destroyed . | . . . . . Machines Disabled . | . . . . . Actions | -11 -10 -10 -9 -6 --------- Run | Yrd Mat Sub Scr Fac Total 12279 | 45 1219 4146 2615 4254 Wait 5028 | . 314 2027 730 1957 Move 6679 | 33 817 1965 1784 2080 Hop 4 | . . . . 4 Pick Up 11 | . 3 2 1 5 Fast Attach 39 | 6 6 4 12 11 Attach 9 | . . 2 2 5 Detach 10 | . . 3 3 4 Swap 16 | . 5 1 5 5 Drop 30 | . 7 2 10 11 Fire 16 | 6 10 . . . Melee 312 | . 51 103 25 133 Ram . | . . . . . Kick . | . . . . . Crush . | . . . . . Escape Stasis . | . . . . . Rewire . | . . . . . Trap . | . . . . . Miscellaneous 125 | . 6 37 43 39 Route ------- -11/Scrapyard -10/Materials (discovered 5 exits: [*Mat x3] / [*Min] / *Sub) -10/Subcaves (discovered 4 exits: *Mat x2 / [Rec] / *Scr) -9/Scraptown (discovered 2 exits: *Fac x2) -6/Factory (discovered 5 exits: *Fac x3 / *Low x2) History --------- Turn | Location | Event 1 | -11/Scrapyard | Upgraded with Propulsion slot (x1) 1 | -11/Scrapyard | Upgraded with Utility slot (x2) 1 | -11/Scrapyard | Upgraded with Weapon slot (x1) 10 | -11/Scrapyard | Discovered new exit (range 14) 59 | -11/Scrapyard | Entered Materials 181 | -10/Materials | Discovered new exit (range 8) 201 | -10/Materials | Discovered new exit (range 15) 472 | -10/Materials | Discovered new exit (range 11) 592 | -10/Materials | Build established: Gladiator 652 | -10/Materials | Discovered new exit (range 13) 896 | -10/Materials | Reached level 2 898 | -10/Materials | Upgraded with Utility slot (x1) 926 | -10/Materials | Central database locked down 1070 | -10/Materials | Discovered new exit (range 14) 1103 | -10/Materials | Entered Subcaves 1104 | -10/Subcaves | Shifting Twisted Machinery released Sub. Machine Gun 1104 | -10/Subcaves | Approached by a straggling Scientist 1104 | -10/Subcaves | Identified exit to Materials 1145 | -10/Subcaves | Shifting Twisted Machinery released Mak. System Restoration Module 1938 | -10/Subcaves | Discovered new exit (range 8) 2093 | -10/Subcaves | A swath of the cavern ceiling suddenly collapsed 2184 | -10/Subcaves | Visited 4L-MR0's lab 2240 | -10/Subcaves | Found Meta Core 2241 | -10/Subcaves | Attached Meta Core, gained temporary slots: Propulsion, Utility, Weapon 2406 | -10/Subcaves | Reached level 3 2427 | -10/Subcaves | Upgraded with Utility slot (x1) 2507 | -10/Subcaves | A swath of the cavern ceiling suddenly collapsed 2639 | -10/Subcaves | Visited Clippyterm 2641 | -10/Subcaves | Learned Factory trap positions 2965 | -10/Subcaves | Core integrity fell below 50% 3330 | -10/Subcaves | Shifting Twisted Machinery released Battle Cannon 3331 | -10/Subcaves | Shifting Twisted Machinery released Mak. Power Source 3611 | -10/Subcaves | Shifting Twisted Machinery released Sub. Power Source 3649 | -10/Subcaves | Visited triangular shrine 3652 | -10/Subcaves | Found Prototype Device 3652 | -10/Subcaves | Identified V3-11A's Pendant 3657 | -10/Subcaves | Befriended Subdweller 3989 | -10/Subcaves | Shifting Twisted Machinery released Battle Rifle 4330 | -10/Subcaves | Learned Materials security intel 4355 | -10/Subcaves | Released subatomizers from SUBCON Basin 4370 | -10/Subcaves | Disturbed a concealed Subdweller 4377 | -10/Subcaves | Befriended Subdweller 4407 | -10/Subcaves | Befriended Subdweller 4712 | -10/Subcaves | Entered Scraptown 4712 | -9/Scraptown | Accompanied by 3 allies 4799 | -9/Scraptown | Visited UFD Registry 4799 | -9/Scraptown | Registered with UFD as "Slugstep" 4882 | -9/Scraptown | Delivered Scrap Shield to a Scientist 4968 | -9/Scraptown | Visited Junk Repository 4996 | -9/Scraptown | Visited Analyses Database 5008 | -9/Scraptown | Visited Research Penetration Think Tank 5022 | -9/Scraptown | Visited Scrap Suit Storage 5106 | -9/Scraptown | Visited Curators Association 5125 | -9/Scraptown | Visited Junk Repository 5192 | -9/Scraptown | Visited Derelict Rescue Squad 5205 | -9/Scraptown | Visited Junk Cannon Lab 5212 | -9/Scraptown | Found Prototype Special Weapon 5212 | -9/Scraptown | Identified Junk Cannon 5291 | -9/Scraptown | Visited Modified Component R&D 5414 | -9/Scraptown | Discovered new exit (range 16) 5485 | -9/Scraptown | Visited SPCMW 5498 | -9/Scraptown | Visited Shadow of the Wyrm 5519 | -9/Scraptown | Visited Awakened 5535 | -9/Scraptown | Visited Bundlers 5649 | -9/Scraptown | Delivered V3-11A's Pendant to T0-NE2 in exchange for information 5755 | -9/Scraptown | Visited Fellowship of the Rings 5767 | -9/Scraptown | Visited Comm Corps 5854 | -9/Scraptown | Discovered new exit (range 11) 5959 | -9/Scraptown | Met Optimus 5959 | -9/Scraptown | Accepted into 0bPrime 6359 | -9/Scraptown | Civil war broke out across Scraptown 6364 | -9/Scraptown | Found DM-GVY's Chainsaw 6566 | -9/Scraptown | Found Surveybot 24 Chip 6698 | -9/Scraptown | Entered Factory 6699 | -6/Factory | Loaded intel: 106 trap records 6700 | -6/Factory | Reached level 4 6719 | -6/Factory | Lost 13 allies 6807 | -6/Factory | Build established: Scavenger-Gladiator 7218 | -6/Factory | Loaded intel: 8 recycling unit locations 7270 | -6/Factory | Found Prototype Processor 7270 | -6/Factory | Identified Exp. Targeting Computer 7533 | -6/Factory | Reached level 5 7555 | -6/Factory | Upgraded with Utility slot (x1) 7615 | -6/Factory | Fabricated Hardcell Cannon (x2) 7622 | -6/Factory | Discovered new exit (range 15) 7635 | -6/Factory | Identified exit to Lower Caves 8094 | -6/Factory | Build established: Hacker-Sprinter 8281 | -6/Factory | Reached level 6 8292 | -6/Factory | Upgraded with Propulsion slot (x1) 8327 | -6/Factory | Upgraded with Power slot (x1) 8473 | -6/Factory | Learned location of Protoforge (-2) 8597 | -6/Factory | Discovered new exit (range 16) 8602 | -6/Factory | Build established: Scavenger-Sprinter 8602 | -6/Factory | Identified exit to Factory 9178 | -6/Factory | Reached level 7 9181 | -6/Factory | Upgraded with Propulsion slot (x1) 9192 | -6/Factory | Discovered exit to Factory (range 17) 9399 | -6/Factory | Learned location of 1 exit from Proximity Caves 9439 | -6/Factory | Loaded intel: 6 fabricator locations 9476 | -6/Factory | Build established: Scavenger-Scout 9487 | -6/Factory | Learned location of Proximity Caves (-4) 9497 | -6/Factory | Loaded intel: 26 terminal locations 9499 | -6/Factory | Learned Factory trap positions 9533 | -6/Factory | Learned location of 1 exit from Upper Caves 9812 | -6/Factory | Build established: Hacker-Scout 9883 | -6/Factory | Core integrity fell below 50% 9900 | -6/Factory | Core integrity fell below 20% 9908 | -6/Factory | Destroyed by H-66 Slayer with Heavy Assault Rifle Last Messages --------------- 09888_ Knocked back. 09888_ Mak. Hammer follow-up attack on H-61 Shepherd. 09895_ Ripper follow-up attack on H-61 Shepherd. 09895_ Mak. Hammer follow-up attack on H-61 Shepherd. 09897_ Knocked back. 09898_ Slug penetrates Wall. 09898_ Slug penetrates H-61 Shepherd. 09899_ Knocked back. 09900_ Acquired 7 matter. 09901_ Slug penetrates Wall. 09902_ Ripper follow-up attack on H-61 Shepherd. 09902_ H-61 Shepherd destroyed. 09904_ Slug penetrates Wall. 09905_ K-01 Serf collects debris. 09906_ Acquired Imp. Cesium-ion Thruster. 09908_ Wall collapses. 09908_ Acquired 7 matter. 09908_ Slug penetrates Wall. 09908_ Penetrated by Slug. 09908_ Lgt. Ion Engine destroyed. Map ----- +----------------------------------------------------+ | ??????????????????????????^??????????????????????? | | ?????????????????????????????????????????????????? | | ?????????????????????????????????????????????????? | | ?????????????????????????????????????????????????? | | ?????????????????????????????????????????????????? | | ???????????????""??????"?????????????????????????? | | ?????????????? ?? ?? ? ??????????????????????? | | ????????????"????" ??"???? """???????????????????? | | ???????????""" """ ?"" "?" ?"????????????????????? | | ?????""?????"" ?"" ""? """ """ ??????????????????? | | ?????""??? ? ?? ? ?????????????????? | | ?????"T ? """ """ """ """ ?"" """???????????????? | | ?????"" """ """ """ """ """?"""?? ????????????? | | ?????""? """ """ """ """ ?"" "?"? ??????????? | | ??????? ? ? ???? ??? | | ???????? ? ? ????? | | ????????#####;^^ #########?######?#??####?#### | | ?????###?##?##^^ ##################?#####??### | | ??????####### !! %#?########################## | | ???? !%= ##########T ## | | ???? *! | | ???? % % | | ???? | | ????? | | ????? | | ?????? %"##@######+### | | ??????####### #### % # ####### | | ??????##?################# # =####### | | ????????#?##?#?########??# # ! # ! | | ???#???#?#########?####### # !|# | | ???#?????##??#########?### # # | | ??????#??################# """ """ # *#[ | | ??????#???######??######## """ """ # [%+%% | | ? ????#???#######??####### """ """ # !#! " | | ?? ?????????####?################### *# " | | ???????????######################## # * " | | ???#?#????#??############ ## # | | ????###?##??############# ####### | | ?? #?##?##### | | ###?###### | | ########## ! | | #?###[ # ! | | #?### # | | ##### # ####### ####### | | ##### " " " # ####### ####+########### | | #?### " " " # ################# ### | | ##### " " " # ################# ### | | ?#?## " " " # ################# ### | | ##### " " " # # """ #### ### | | ###?# " " " # #!"Y" #### "" "" + | +----------------------------------------------------+ Best States ------------- Heat Dissipation 43 Energy Generation 27 Energy Capacity 250 Matter Stores 300 Matter Capacity 300 Sight Range 17 Robot Scan Range 10 Terrain Scan Range 16 Terrain Scan Density 2410 Additional Mass Support 9 Armor Coverage 800 Phase Shifting 5 Evasion (%) 79 Targeting Accuracy 5 Melee Accuracy 8 Target Analysis 6 Offensive Hacking 16 Defensive Hacking 15 Item Schematics ----------------- None Robot Schematics ------------------ None Fabricated ------------ Hardcell Cannon | x2 | -6/Factory | Preloaded Repaired ---------- Nothing Studied --------- Gravmag System | -6/Factory | Hacked Imp. Hover Unit | -6/Factory | Hacked Alien Tech Used ----------------- None Achievements -------------- None Challenges ------------ None RPGLIKE | -11 -10 -10 -9 -6 --------- Run | Yrd Mat Sub Scr Fac Levels Raised 6 | . 1 1 . 4 XP Earned 13151 | 3000 1695 1716 975 5765 XP Spent 11925 | 3000 1490 1500 . 5935 Upgrades 31 | 11 4 2 . 14 Power Slot 1 | . . . . 1 Propulsion Slot 3 | 1 . . . 2 Utility Slot 5 | 2 1 1 . 1 Weapon Slot 1 | 1 . . . . Core Integrity 1 | . . . . 1 Heat Dissipation 3 | 1 . . . 2 Energy Generation 1 | . . . . 1 Mass Support 1 | . . 1 . . Inventory Capacity 2 | 1 . . . 1 Sight Range 1 | . . . . 1 Sensor Range 5 | 4 . . . 1 Terrain Scan Density 4 | 1 3 . . . Melee Accuracy 1 | . . . . 1 Hack Attack % 1 | . . . . 1 Hack Defense % 1 | . . . . 1 Protomatter Created 923 | . 37 284 220 382 Integrity Restored 2616 | . 98 776 919 823 Core 2139 | . 73 723 572 771 Parts 477 | . 25 53 347 52 Protomatter Decayed 6362 | . 2 53 6223 84 Game ------ Seed ImpulseLinkedFocus Manual? 0 Play Time 01:29:25 Cumulative 53.4 hours Start 2025.11.15 @ 07:14:10 End 2025.11.15 @ 08:47:40 Sessions 1 Manual Loads 0 Difficulty Rogue Special Mode Winter2019/RPGLIKE Game No. 46 Rogue 46 Adventurer 0 Explorer 0 Win Type - Total 0 Types 0/0/0/0/0/0/0/0/0/0 Lore% 49 Gallery% 32 Achievement% 30 Wizard Run 0 Options --------- Layout 0 ASCII 0 Keyboard 0 Movement Mouse Keybinds 0 Fullscreen 2 Font 24/Smallcaps Map View 76x50 Zoom Use 0% Tactical HUD 1 Map Filters NONE Filters NONE Steam 1 RUN: d28bb5c0-0652-4a2f-b512-beca1c5c4ae3